fUSD/lending_fUSD_20250612
["ID","MTS","AMOUNT","RATE_DAILY","PERIOD"]
[365534626,1749771043282,-789.07,0.00016994,2]
[365534627,1749771043292,-490.0,0.00016994,2]
[365534628,1749771043301,-3235.464422,0.00016994,2]
[365534629,1749771043311,-490.0,0.00016994,2]
[365534630,1749771043320,-589.19195368,0.00016994,2]
[365534631,1749771043329,-490.0,0.00016994,2]
[365534632,1749771043339,-557.96,0.00016994,2]
[365534633,1749771043348,-490.0,0.00016994,2]
[365534634,1749771043358,-490.0,0.00016994,2]
[365534635,1749771043367,-490.0,0.00016994,2]
[365534636,1749771043377,-2235.14,0.00016994,2]
[365534637,1749771043387,-490.0,0.00016994,2]
[365534638,1749771043397,-490.0,0.00016994,2]
[365534639,1749771043407,-490.0,0.00016994,2]
[365534640,1749771043417,-490.0,0.00016994,2]
[365534641,1749771043427,-2391.77,0.00016994,2]
[365534642,1749771043437,-490.0,0.00016994,2]
[365534643,1749771043446,-490.0,0.00016994,2]
[365534644,1749771043456,-859.13,0.00016994,2]
[365534645,1749771043466,-490.0,0.00016994,2]
[365534646,1749771043475,-910.26,0.00016994,2]
[365534647,1749771043487,-490.0,0.00016994,2]
[365534648,1749771043496,-490.46,0.00016994,2]
[365534649,1749771043506,-557.16,0.00016994,2]
[365534650,1749771043515,-490.48723381,0.00016994,2]
[365534651,1749771043524,-2842.51737,0.00016994,2]
[365534652,1749771043534,-490.0,0.00016994,2]
[365534653,1749771043544,-490.0,0.00016994,2]
[365534654,1749771043554,-151.466104,0.00016994,2]
[365534655,1749771043564,-490.0,0.00016994,2]
[365534656,1749771043573,-317.46738944,0.00016994,2]
[365534657,1749771043583,-1074.07,0.00016994,2]
[365534658,1749771043592,-3475.61,0.00016994,2]
[365534659,1749771043602,-500.55135187,0.00016994,2]
[365534660,1749771043612,-490.0,0.00016994,2]
[365534661,1749771043622,-150.965735,0.00016994,2]
[365534662,1749771043632,-426.52944027,0.00016994,2]
[365534663,1749771043642,-668.95,0.00016994,2]
[365534664,1749771043652,-490.0,0.00016994,2]
[365534665,1749771043661,-787.46,0.00016994,2]
[365534666,1749771043671,-490.0,0.00016994,2]
[365534667,1749771043682,-490.0,0.00016994,2]
[365534668,1749771043692,-361.98932685,0.00016994,2]
[365534669,1749771043702,-468.48775966,0.00016994,2]
[365534670,1749771043712,-490.0,0.00016994,2]
[365534671,1749771043721,-490.0,0.00016994,2]
[365534672,1749771043731,-490.0,0.00016994,2]
[365534673,1749771043740,-1225.69,0.00016994,2]
[365534674,1749771043750,-490.0,0.00016994,2]
[365534675,1749771043759,-628.55,0.00016994,2]
[365534676,1749771043769,-490.0,0.00016994,2]
[365534677,1749771043778,-490.0,0.00016994,2]
[365534678,1749771043788,-490.0,0.00016994,2]
[365534679,1749771043798,-490.0,0.00016994,2]
[365534680,1749771043808,-490.0,0.00016994,2]
[365534681,1749771043818,-57870.9796741,0.00016994,2]
[365534682,1749771043828,-490.0,0.00016994,2]
[365534683,1749771043837,-490.0,0.00016994,2]
[365534684,1749771043847,-490.0,0.00016994,2]
[365534685,1749771043857,-490.0,0.00016994,2]
[365534686,1749771043866,-490.0,0.00016994,2]
[365534687,1749771043875,-490.0,0.00016994,2]
[365534688,1749771043885,-490.0,0.00016994,2]
[365534689,1749771043894,-490.0,0.00016994,2]
[365534690,1749771043904,-500.0,0.00016994,2]
[365534691,1749771043913,-1830.19,0.00016994,2]
[365534692,1749771043923,-694.58,0.00016994,2]
[365534693,1749771043935,-490.0,0.00016994,2]
[365534694,1749771043945,-490.0,0.00016994,2]
[365534695,1749771043954,-848.4,0.00016994,2]
[365534696,1749771043964,-490.0,0.00016994,2]
[365534697,1749771043975,-490.0,0.00016994,2]
[365534698,1749771043986,-490.0,0.00016994,2]
[365534699,1749771043997,-490.0,0.00016994,2]
[365534700,1749771044012,-1783.47,0.00016994,2]
[365534701,1749771044022,-490.0,0.00016994,2]
[365534702,1749771044033,-490.0,0.00016994,2]
[365534703,1749771044044,-490.0,0.00016994,2]
[365534704,1749771044053,-519.41733458,0.00016994,2]
[365534705,1749771044063,-490.0,0.00016994,2]
[365534706,1749771044072,-490.0,0.00016994,2]
[365534707,1749771044083,-490.0,0.00016994,2]
[365534708,1749771044092,-394.13497775,0.00016994,2]
[365534709,1749771044102,-490.0,0.00016994,2]
[365534710,1749771044111,-730.9,0.00016994,2]
[365534711,1749771044121,-490.0,0.00016994,2]
[365534712,1749771044131,-536.44913168,0.00016994,2]
[365534713,1749771044140,-490.0,0.00016994,2]
[365534714,1749771044149,-490.0,0.00016994,2]
[365534715,1749771044159,-490.0,0.00016994,2]
[365534716,1749771044169,-664.35,0.00016994,2]
[365534718,1749771044178,-490.0,0.00016994,2]
[365534719,1749771044188,-490.0,0.00016994,2]
[365534720,1749771044198,-361.43135463,0.00016994,2]
[365534721,1749771044208,-328.81195991,0.00016994,2]
[365534722,1749771044218,-580.0,0.00016994,2]
[365534723,1749771044228,-1532.3,0.00016994,2]
[365534724,1749771044240,-490.0,0.00016994,2]
[365534725,1749771044250,-490.0,0.00016994,2]
[365534726,1749771044260,-448.15536436,0.00016994,2]
[365534727,1749771044270,-703.67,0.00016994,2]
[365534728,1749771044281,-1500.67,0.00016994,2]
[365534729,1749771044291,-490.0,0.00016994,2]
[365534730,1749771044300,-509.75637795,0.00016994,2]
[365534731,1749771044310,-178.4696089,0.00016994,2]
[365534732,1749771044319,-490.0,0.00016994,2]
[365534733,1749771044329,-490.0,0.00016994,2]
[365534734,1749771044339,-490.0,0.00016994,2]
[365534735,1749771044348,-490.0,0.00016994,2]
[365534736,1749771044358,-490.0,0.00016994,2]
[365534737,1749771044368,-558.41365784,0.00016994,2]
[365534738,1749771044378,-490.0,0.00016994,2]
[365534739,1749771044388,-2145.12,0.00016994,2]
[365534740,1749771044398,-577.15,0.00016994,2]
[365534741,1749771044408,-490.0,0.00016994,2]
[365534742,1749771044418,-490.0,0.00016994,2]
[365534743,1749771044427,-490.0,0.00016994,2]
[365534744,1749771044436,-522.30324005,0.00016994,2]
[365534745,1749771044446,-636.72284035,0.00016994,2]
[365534746,1749771044455,-1148.34,0.00016994,2]
[365534747,1749771044465,-490.0,0.00016994,2]
[365534748,1749771044475,-490.0,0.00016994,2]
[365534749,1749771044486,-490.0,0.00016994,2]
[365534750,1749771044496,-198.24035674,0.00016994,2]
[365534751,1749771044506,-572.27,0.00016994,2]
[365534752,1749771044516,-490.0,0.00016994,2]
[365534753,1749771044526,-1688.94,0.00016994,2]
[365534754,1749771044535,-490.0,0.00016994,2]
[365534755,1749771044545,-588.96,0.00016994,2]
[365534756,1749771044555,-490.0,0.00016994,2]
[365534757,1749771044565,-1738.35,0.00016994,2]
[365534758,1749771044574,-490.0,0.00016994,2]
[365534759,1749771044584,-490.0,0.00016994,2]
[365534760,1749771044594,-166.49227069,0.00016994,2]
[365534761,1749771044603,-532.3,0.00016994,2]
[365534762,1749771044612,-490.0,0.00016994,2]
[365534763,1749771044622,-2297.89,0.00016994,2]
[365534764,1749771044631,-298.65146729,0.00016994,2]
[365534765,1749771044641,-3398.58,0.00016994,2]
[365534766,1749771044651,-490.0,0.00016994,2]
[365534767,1749771044660,-2580.03,0.00016994,2]
[365534768,1749771044670,-490.0,0.00016994,2]
[365534769,1749771044680,-295.73060045,0.00016994,2]
[365534770,1749771044689,-490.0,0.00016994,2]
[365534771,1749771044698,-208.56453762,0.00016994,2]
[365534772,1749771044708,-412.79815032,0.00016994,2]
[365534773,1749771044717,-490.0,0.00016994,2]
[365534774,1749771044727,-490.0,0.00016994,2]
[365534775,1749771044737,-490.0,0.00016994,2]
[365534776,1749771044747,-733.45,0.00016994,2]
[365534777,1749771044757,-490.0,0.00016994,2]
[365534778,1749771044767,-490.0,0.00016994,2]
[365534779,1749771044777,-1641.43,0.00016994,2]
[365534780,1749771044786,-490.0,0.00016994,2]
[365534781,1749771044795,-490.0,0.00016994,2]
[365534782,1749771044805,-490.0,0.00016994,2]
[365534783,1749771044815,-490.0,0.00016994,2]
[365534784,1749771044825,-490.0,0.00016994,2]
[365534785,1749771044834,-1501.42,0.00016994,2]
[365534786,1749771044844,-7226.16,0.00016994,2]
[365534787,1749771044854,-480.76481643,0.00016994,2]
[365534788,1749771044863,-2414.66,0.00016994,2]
[365534789,1749771044873,-490.0,0.00016994,2]
[365534790,1749771044883,-1924.16,0.00016994,2]
[365534791,1749771044892,-2247.77,0.00016994,2]
[365534792,1749771044903,-1076.4,0.00016994,2]
[365534793,1749771044913,-424.39943973,0.00016994,2]
[365534794,1749771044923,-3141.4,0.00016994,2]
[365534795,1749771044934,-490.0,0.00016994,2]
[365534796,1749771044944,-1539.99,0.00016994,2]
[365534797,1749771044954,-493.14624847,0.00016994,2]
[365534798,1749771044963,-490.0,0.00016994,2]
[365534799,1749771044975,-490.0,0.00016994,2]
[365534800,1749771044986,-490.0,0.00016994,2]
[365534801,1749771044996,-4162.62,0.00016994,2]
[365534802,1749771045006,-1996.75,0.00016994,2]
[365534803,1749771045017,-909.03,0.00016994,2]
[365534804,1749771045028,-490.0,0.00016994,2]
[365534805,1749771045038,-1698.89,0.00016994,2]
[365534806,1749771045049,-1144.97,0.00016994,2]
[365534807,1749771045059,-3007.54,0.00016994,2]
[365534808,1749771045069,-495.99,0.00016994,2]
[365534809,1749771045079,-490.0,0.00016994,2]
[365534810,1749771045088,-346.4075397,0.00016994,2]
[365534811,1749771045098,-811.72,0.00016994,2]
[365534812,1749771045108,-3434.8,0.00016994,2]
[365534813,1749771045117,-5017.09,0.00016994,2]
[365534814,1749771045127,-355.12947453,0.00016994,2]
[365534815,1749771045137,-440.38835237,0.00016994,2]
[365534816,1749771045146,-490.0,0.00016994,2]
[365534817,1749771045440,-13176.2,0.00016994,2]
[365534818,1749771045451,-490.0,0.00016994,2]
[365534819,1749771045461,-490.0,0.00016994,2]
[365534820,1749771045470,-511.99,0.00016994,2]
[365534821,1749771045481,-3244.91,0.00016994,2]
[365534822,1749771045491,-480.0,0.00016994,2]
[365534823,1749771045501,-3244.91,0.00016994,2]
[365534824,1749771045511,-930.1,0.00016994,2]
[365534825,1749771045522,-395.63300873,0.00016994,2]
[365534826,1749771045532,-490.0,0.00016994,2]
[365534827,1749771045542,-8993.32,0.00016994,2]
[365534828,1749771045552,-2410.83,0.00016994,2]
[365534829,1749771045561,-4344.91,0.00016994,2]
[365534830,1749771045571,-451.89270882,0.00016994,2]
[365534831,1749771045580,-514.49,0.00016994,2]
[365534832,1749771045590,-4146.76,0.00016994,2]
[365534833,1749771045599,-3433.87,0.00016994,2]
[365534834,1749771045609,-967.37,0.00016994,2]
[365534835,1749771045619,-536.54,0.00016994,2]
[365534836,1749771045629,-490.0,0.00016994,2]
[365534837,1749771045639,-490.0,0.00016994,2]
[365534838,1749771045649,-2422.36,0.00016994,2]
[365534839,1749771045658,-4253.3,0.00016994,2]
[365534840,1749771045668,-2164.6,0.00016994,2]
[365534841,1749771045678,-2824.0,0.00016994,2]
[365534842,1749771045687,-1530.62,0.00016994,2]
[365534843,1749771045697,-2325.55,0.00016994,2]
[365534844,1749771045707,-1695.34,0.00016994,2]
[365534845,1749771045716,-6567.86,0.00016994,2]
[365534846,1749771045726,-2747.39,0.00016994,2]
[365534847,1749771045736,-1180.01,0.00016994,2]
[365534848,1749771045746,-3582.85,0.00016994,2]
[365534849,1749771045755,-490.0,0.00016994,2]
[365534850,1749771045766,-1291.44,0.00016994,2]
[365534851,1749771045777,-3114.46,0.00016994,2]
[365534852,1749771045786,-2235.63,0.00016994,2]
[365534853,1749771045797,-4394.94,0.00016994,2]
[365534854,1749771045807,-490.0,0.00016994,2]
[365534855,1749771045817,-2638.26,0.00016994,2]
[365534856,1749771045826,-490.0,0.00016994,2]
[365534857,1749771045837,-1446.65,0.00016994,2]
[365534858,1749771045847,-1373.86,0.00016994,2]
[365534859,1749771045856,-496.21,0.00016994,2]
[365534860,1749771045866,-10605.63,0.00016994,2]
[365534861,1749771045875,-490.0,0.00016994,2]
[365534862,1749771045885,-490.0,0.00016994,2]
[365534863,1749771045895,-4232.69,0.00016994,2]
[365534864,1749771045904,-6185.72,0.00016994,2]
[365534865,1749771045914,-490.0,0.00016994,2]
[365534866,1749771045924,-490.0,0.00016994,2]
[365534867,1749771045936,-490.0,0.00016994,2]
[365534868,1749771045946,-490.0,0.00016994,2]
[365534869,1749771045956,-1284.28,0.00016994,2]
[365534870,1749771045966,-4616.99,0.00016994,2]
[365534871,1749771045976,-425.98970801,0.00016994,2]
[365534872,1749771045987,-368.85658698,0.00016994,2]
[365534873,1749771045997,-490.0,0.00016994,2]
[365534874,1749771046006,-1381.25,0.00016994,2]
[365534875,1749771046016,-1114.66,0.00016994,2]
[365534876,1749771046026,-3157.18,0.00016994,2]
[365534877,1749771046036,-2626.21,0.00016994,2]
[365534878,1749771046046,-6897.89,0.00016994,2]
[365534879,1749771046056,-5089.01,0.00016994,2]
[365534880,1749771046067,-517.04190959,0.00016994,2]
[365534881,1749771046077,-1937.71,0.00016994,2]
[365534882,1749771046087,-1062.58,0.00016994,2]
[365534883,1749771046097,-490.0,0.00016994,2]
[365534885,1749771046107,-490.0,0.00016994,2]
[365534886,1749771046118,-2761.02,0.00016994,2]
[365534887,1749771046129,-21336.52,0.00016994,2]
[365534888,1749771046139,-490.0,0.00016994,2]
[365534889,1749771046149,-967.4,0.00016994,2]
[365534890,1749771046159,-2755.29,0.00016994,2]
[365534891,1749771046169,-2844.81,0.00016994,2]
[365534892,1749771046178,-490.0,0.00016994,2]
[365534893,1749771046189,-3562.79,0.00016994,2]
[365534894,1749771046198,-12823.66,0.00016994,2]
[365534895,1749771046208,-490.0,0.00016994,2]
[365534896,1749771046218,-490.0,0.00016994,2]
[365534898,1749771046227,-7075.86,0.00016994,2]
[365534899,1749771046239,-490.0,0.00016994,2]
[365534900,1749771046249,-2512.6,0.00016994,2]
[365534901,1749771046259,-1105.35,0.00016994,2]
[365534902,1749771046268,-776.01,0.00016994,2]
[365534903,1749771046280,-4233.9,0.00016994,2]
[365534904,1749771046289,-1961.8,0.00016994,2]
[365534905,1749771046299,-8278.31,0.00016994,2]
[365534906,1749771046309,-1749.73,0.00016994,2]
[365534907,1749771046319,-2156.86,0.00016994,2]
[365534908,1749771046329,-470.80375217,0.00016994,2]
[365534909,1749771046338,-1150.32,0.00016994,2]
[365534910,1749771046347,-1298.7,0.00016994,2]
[365534911,1749771046358,-845.09,0.00016994,2]
[365534912,1749771046368,-2866.12,0.00016994,2]
[365534913,1749771046378,-490.0,0.00016994,2]
[365534914,1749771046388,-1616.35,0.00016994,2]
[365534915,1749771046397,-490.0,0.00016994,2]
[365534916,1749771046407,-4665.07,0.00016994,2]
[365534917,1749771046417,-490.0,0.00016994,2]
[365534918,1749771046426,-1303.23,0.00016994,2]
[365534919,1749771046436,-3353.06,0.00016994,2]
[365534920,1749771046446,-500.0,0.00016994,2]
[365534921,1749771046455,-490.0,0.00016994,2]
[365534922,1749771046465,-490.0,0.00016994,2]
[365534923,1749771046475,-490.0,0.00016994,2]
[365534924,1749771046485,-1555.14,0.00016994,2]
[365534925,1749771046495,-2287.79,0.00016994,2]
[365534926,1749771046504,-1867.36,0.00016994,2]
[365534927,1749771046514,-4616.53,0.00016994,2]
[365534928,1749771046523,-490.0,0.00016994,2]
[365534929,1749771046533,-869.06,0.00016994,2]
[365534930,1749771046544,-605.79,0.00016994,2]
[365534931,1749771046554,-605.79,0.00016994,2]
[365534932,1749771046564,-9039.7,0.00016994,2]
[365534933,1749771046574,-490.0,0.00016994,2]
[365534934,1749771046583,-490.0,0.00016994,2]
[365534935,1749771046593,-490.0,0.00016994,2]
[365534936,1749771046603,-2970.38,0.00016994,2]
[365534937,1749771046612,-4910.08,0.00016994,2]
[365534938,1749771046622,-3674.25,0.00016994,2]
[365534939,1749771046632,-2035.88,0.00016994,2]
[365534940,1749771046642,-490.0,0.00016994,2]
[365534941,1749771046651,-1376.53,0.00016994,2]
[365534942,1749771046662,-490.0,0.00016994,2]
[365534943,1749771046672,-3787.35,0.00016994,2]
[365534944,1749771046682,-2131.71,0.00016995,2]
[365534945,1749771046692,-490.0,0.00016995,2]
[365534946,1749771046701,-490.0,0.00016995,2]
[365534947,1749771046711,-2300.75,0.00016995,2]
[365534948,1749771046720,-2113.56,0.00016995,2]
[365534949,1749771046730,-2315.73,0.00016995,2]
[365534950,1749771046741,-490.0,0.00016995,2]
[365534951,1749771046750,-490.0,0.00016995,2]
[365534952,1749771046760,-657.5,0.00016995,2]
[365534953,1749771046770,-2241.82,0.00016995,2]
[365534954,1749771046780,-490.0,0.00016995,2]
[365534955,1749771046789,-2237.97,0.00016995,2]
[365534956,1749771046799,-490.0,0.00016995,2]
[365534957,1749771046809,-490.0,0.00016995,2]
[365534958,1749771046819,-490.0,0.00016995,2]
[365534959,1749771046829,-757.86,0.00016995,2]
[365534960,1749771046838,-1108.06,0.00016995,2]
[365534961,1749771046848,-1364.97,0.00016995,2]
[365534962,1749771046858,-490.0,0.00016995,2]
[365534963,1749771046868,-1001.52,0.00016995,2]
[365534964,1749771046878,-1671.42,0.00016995,2]
[365534965,1749771046888,-639.85,0.00016995,2]
[365534966,1749771046898,-1279.48,0.00016995,2]
[365534967,1749771046907,-490.0,0.00016995,2]
[365534968,1749771046917,-2210.08,0.00016995,2]
[365534969,1749771046927,-500.0,0.00016995,2]
[365534970,1749771046939,-780.97,0.00016995,2]
[365534971,1749771046949,-1938.88,0.00016995,2]
[365534972,1749771046959,-566.88,0.00016995,2]
[365534973,1749771046968,-2284.24,0.00016995,2]
[365534974,1749771046980,-603.46,0.00016995,2]
[365534975,1749771046990,-952.49,0.00016995,2]
[365534976,1749771047000,-490.0,0.00016995,2]
[365534977,1749771047011,-490.0,0.00016995,2]
[365534978,1749771047021,-572.13,0.00016995,2]
[365534979,1749771047031,-1976.42,0.00016995,2]
[365534980,1749771047041,-1415.05,0.00016995,2]
[365534981,1749771047051,-490.0,0.00016995,2]
[365534982,1749771047060,-490.0,0.00016995,2]
[365534983,1749771047070,-685.18,0.00016995,2]
[365534984,1749771047079,-2658.53,0.00016995,2]
[365534985,1749771047088,-1472.39,0.00016995,2]
[365534986,1749771047098,-490.0,0.00016995,2]
[365534987,1749771047107,-490.0,0.00016995,2]
[365534988,1749771047117,-490.0,0.00016995,2]
[365534989,1749771047128,-1136.04,0.00016995,2]
[365534990,1749771047138,-490.0,0.00016995,2]
[365534991,1749771047147,-667.56,0.00016995,2]
[365534992,1749771047158,-1696.8,0.00016995,2]
[365534993,1749771047168,-1695.34,0.00016995,2]
[365534994,1749771047177,-1725.53,0.00016995,2]
[365534995,1749771047187,-490.0,0.00016995,2]
[365534996,1749771047196,-2453.56,0.00016995,2]
[365534997,1749771047206,-2052.92,0.00016995,2]
[365534998,1749771047217,-490.0,0.00016995,2]
[365534999,1749771047227,-660.7,0.00016995,2]
[365535000,1749771047238,-3359.98,0.00016995,2]
[365535001,1749771047248,-490.0,0.00016995,2]
[365535002,1749771047257,-2946.06,0.00016995,2]
[365535003,1749771047267,-490.0,0.00016995,2]
[365535004,1749771047276,-2001.17,0.00016995,2]
[365535005,1749771047286,-196.49591832,0.00016995,2]
[365535006,1749771047296,-490.0,0.00016995,2]
[365535007,1749771047306,-4074.36,0.00016995,2]
[365535008,1749771047317,-490.0,0.00016995,2]
[365535009,1749771047329,-490.0,0.00016995,2]
[365535010,1749771047339,-576.46,0.00016995,2]
[365535011,1749771047351,-1269.27,0.00016995,2]
[365535012,1749771047362,-157.7109349,0.00016995,2]
[365535013,1749771047371,-3624.25,0.00016995,2]
[365535014,1749771047380,-490.0,0.00016995,2]
[365535015,1749771047389,-885.55,0.00016995,2]
[365535016,1749771047399,-2392.45,0.00016995,2]
[365535017,1749771047408,-490.0,0.00016995,2]
[365535018,1749771047418,-718.18,0.00016995,2]
[365535019,1749771047427,-2215.84,0.00016995,2]
[365535020,1749771047436,-1817.98,0.00016995,2]
[365535021,1749771047446,-3010.71,0.00016995,2]
[365535022,1749771047455,-490.0,0.00016995,2]
[365535023,1749771047465,-819.87,0.00016995,2]
[365535024,1749771047474,-2060.78,0.00016995,2]
[365535025,1749771047483,-490.0,0.00016995,2]
[365535026,1749771047492,-3650.19,0.00016995,2]
[365535027,1749771047502,-500.0,0.00016995,2]
[365535028,1749771047511,-490.0,0.00016995,2]
[365535029,1749771047521,-1104.32,0.00016995,2]
[365535030,1749771047530,-490.0,0.00016995,2]
[365535031,1749771047539,-490.0,0.00016995,2]
[365535032,1749771047549,-2018.98,0.00016995,2]
[365535033,1749771047558,-2989.67,0.00016995,2]
[365535034,1749771047567,-2000.0,0.00016995,2]
[365535035,1749771047576,-545.84,0.00016995,2]
[365535036,1749771047586,-490.0,0.00016995,2]
[365535037,1749771047595,-2702.2,0.00016995,2]
[365535038,1749771047604,-490.0,0.00016995,2]
[365535039,1749771047613,-413.38416533,0.00016995,2]
[365535040,1749771047623,-490.0,0.00016995,2]
[365535041,1749771047632,-252.72367929,0.00016995,2]
[365535042,1749771047641,-490.0,0.00016995,2]
[365535043,1749771047651,-490.0,0.00016995,2]
[365535044,1749771047660,-1519.37,0.00016995,2]
[365535045,1749771047669,-652.57,0.00016995,2]
[365535046,1749771047679,-4294.82,0.00016995,2]
[365535047,1749771047688,-490.0,0.00016995,2]
[365535048,1749771047698,-490.0,0.00016995,2]
[365535049,1749771047707,-1604.39,0.00016995,2]
[365535050,1749771047717,-1555.42,0.00016995,2]
[365535051,1749771047726,-490.0,0.00016995,2]
[365535052,1749771047736,-490.0,0.00016995,2]
[365535053,1749771047746,-631.1,0.00016995,2]
[365535054,1749771047756,-490.0,0.00016995,2]
[365535055,1749771047765,-490.0,0.00016995,2]
[365535056,1749771047775,-490.0,0.00016995,2]
[365535057,1749771047784,-490.0,0.00016995,2]
[365535058,1749771047795,-1878.24,0.00016995,2]
[365535059,1749771047804,-490.0,0.00016995,2]
[365535060,1749771047814,-858.27,0.00016995,2]
[365535061,1749771047824,-849.45,0.00016995,2]
[365535062,1749771047947,-3244.91,0.00016996,2]
[365535063,1749771047958,-923.37,0.00016996,2]
[365535064,1749771047968,-500.0,0.00016996,2]
[365535065,1749771047979,-605.79,0.00016996,2]
[365535066,1749771047989,-490.0,0.00016997,2]
[365535067,1749771047998,-490.0,0.00016997,2]
[365535068,1749771048011,-490.0,0.00016997,2]
[365535069,1749771048021,-490.0,0.00016997,2]
[365535070,1749771048031,-490.0,0.00016997,2]
[365535071,1749771048040,-829.82,0.00016997,2]
[365535072,1749771048050,-423.82721611,0.00016997,2]
[365535073,1749771048060,-490.0,0.00016997,2]
[365535074,1749771048070,-599.75,0.00016997,2]
[365535075,1749771048080,-490.0,0.00016997,2]
[365535076,1749771048089,-490.0,0.00016997,2]
[365535077,1749771048099,-490.0,0.00016997,2]
[365535078,1749771048108,-490.0,0.00016997,2]
[365535079,1749771048119,-490.0,0.00016997,2]
[365535080,1749771048129,-490.0,0.00016997,2]
[365535081,1749771048138,-490.0,0.00016997,2]
[365535082,1749771048148,-490.0,0.00016997,2]
[365535083,1749771048158,-490.0,0.00016997,2]
[365535084,1749771048168,-490.0,0.00016997,2]
[365535085,1749771048177,-490.0,0.00016997,2]
[365535086,1749771048187,-490.0,0.00016997,2]
[365535087,1749771048196,-490.0,0.00016997,2]
[365535088,1749771048205,-674.52,0.00016997,2]
[365535089,1749771048215,-688.44,0.00016997,2]
[365535090,1749771048224,-490.0,0.00016997,2]
[365535091,1749771048234,-490.0,0.00016997,2]
[365535092,1749771048243,-490.0,0.00016997,2]
[365535093,1749771048253,-490.0,0.00016997,2]
[365535094,1749771048262,-490.0,0.00016997,2]
[365535095,1749771048272,-490.0,0.00016997,2]
[365535096,1749771048281,-490.0,0.00016997,2]
[365535097,1749771048291,-490.0,0.00016997,2]
[365535098,1749771048301,-490.0,0.00016997,2]
[365535099,1749771048310,-500.0,0.00016997,2]
[365535100,1749771048319,-9328.27,0.00016997,2]
[365535101,1749771048329,-5871.13,0.00016997,2]
[365535102,1749771048338,-1816.48,0.00016997,2]
[365535103,1749771048347,-1748.98,0.00016997,2]
[365535104,1749771048357,-2330.89,0.00016997,2]
[365535105,1749771048366,-1462.48,0.00016997,2]
[365535106,1749771048376,-3516.58,0.00016997,2]
[365535107,1749771048386,-5767.87,0.00016997,2]
[365535108,1749771048396,-8986.86,0.00016997,2]
[365535109,1749771048406,-8419.62,0.00016997,2]
[365535110,1749771048416,-490.0,0.00016997,2]
[365535111,1749771048426,-895.99,0.00016997,2]
[365535112,1749771048435,-490.0,0.00016997,2]
[365535113,1749771048444,-490.0,0.00016997,2]
[365535114,1749771048454,-14875.6,0.00016997,2]
[365535115,1749771048464,-7725.79,0.00016997,2]
[365535116,1749771048474,-1000.0,0.00016997,2]
[365535117,1749771048483,-490.0,0.00016997,2]
[365535118,1749771048494,-1889.81,0.00016997,2]
[365535119,1749771048504,-1387.84,0.00016997,2]
[365535120,1749771048513,-32153.39,0.00016997,2]
[365535121,1749771048523,-3336.49,0.00016997,2]
[365535122,1749771048532,-2619.62,0.00016997,2]
[365535123,1749771048542,-1376.85,0.00016997,2]
[365535124,1749771048553,-923.37,0.00016997,2]
[365535125,1749771048563,-3966.13,0.00016997,2]
[365535126,1749771048572,-500.0,0.00016997,2]
[365535127,1749771048581,-1284.49,0.00016997,2]
[365535128,1749771048591,-1929.92,0.00016997,2]